[Event "LTU-ch Women 2019"]
[Site "Vilnius"]
[Date "2019.03.19"]
[Round "5.5"]
[White "Malisauskiene, Marina"]
[Black "Maciulaityte, Barbora"]
[Result "1/2-1/2"]
[ECO "D86"]
[WhiteElo "1869"]
[BlackElo "1765"]
[Annotator "NA"]
[PlyCount "125"]
[EventDate "2019.??.??"]
[EventCountry "LTU"]
[SourceTitle "playchess.com"]
[Source "ChessBase"]
[SourceQuality "1"]
[TimeControl "5400+30"]

1. d4 {[%emt 0:00:00]} Nf6 {[%emt 0:00:00]} 2. c4 {[%emt 0:00:30]} g6 {[%emt 0:00:30]} 3. Nc3 {[%emt 0:00:30]} d5 {[%emt 0:00:30]} 4. cxd5 {[%emt 0:00:30]} Nxd5 {[%emt 0:00:30]} 5. e4 {[%emt 0:00:30]} Nxc3 {[%emt 0:00:30]} 6. bxc3 {[%emt 0:00:30]} Bg7 {[%emt 0:00:30]} 7. Bc4 {[%emt 0:00:39]} c5 {[%emt 0:00:30]} 8. Be3 {[%emt 0:00:30]} O-O {[%emt 0:00:54]} 9. Ne2 {[%emt 0:00:30]} Nc6 {[%emt 0:00:30]} 10. O-O {[%emt 0:00:30]} Na5 {[%emt 0:00:30]} 11. Bd3 {[%emt 0:00:31]} b6 {[%emt 0:00:30]} 12. Rc1 {[%emt 0:01:05]} e5 {[%emt 0:02:58]} 13. dxc5 {[%emt 0:07:55]} Qc7 {[%emt 0:00:41]} 14. cxb6 {[%emt 0:01:06]} axb6 {[%emt 0:00:30]} 15. c4 {[%emt 0:04:10]} Nb7 {[%emt 0:22:42]} 16. Nc3 {[%emt 0:01:24]} Nc5 {[%emt 0:02:53]} 17. Nd5 {[%emt 0:00:54]} Qa7 {[%emt 0:03:55]} 18. Bb1 {[%emt 0:00:30]} Be6 {[%emt 0:03:53]} 19. Qd2 {[%emt 0:04:58]} Rfd8 {[%emt 0:09:22]} 20. Rfd1 {[%emt 0:04:57]} Rd7 {[%emt 0:02:08]} 21. Qb2 {[%emt 0:11:50]} Na4 {[%emt 0:10:34]} 22. Qb5 {[%emt 0:04:59]} Rad8 {[%emt 0:02:44]} 23. Bc2 {[%emt 0:11:39]} Bxd5 {[%emt 0:07:50]} 24. Bxa4 {[%emt 0:02:13]} Be6 {[%emt 0:02:30]} 25. Rxd7 {[%emt 0:20:05]} Bxd7 {[%emt 0:03:15]} 26. Qxb6 {[%emt 0:00:30]} Qxb6 {[%emt 0:00:39]} 27. Bxb6 {[%emt 0:00:30]} Rb8 {[%emt 0:00:30]} 28. Bxd7 {[%emt 0:01:42]} Rxb6 {[%emt 0:00:30]} 29. c5 {[%emt 0:00:35]} Rb7 {[%emt 0:00:39]} 30. c6 {[%emt 0:00:30]} Rc7 {[%emt 0:00:30]} 31. Rb1 {[%emt 0:00:37]} Bf8 {[%emt 0:00:30]} 32. g4 {[%emt 0:09:29]} g5 {[%emt 0:01:25]} 33. Kf1 {[%emt 0:01:14]} Bd6 {[%emt 0:01:13]} 34. a4 {[%emt 0:00:32]} Kf8 {[%emt 0:03:41]} 35. Rb5 {[%emt 0:02:33]} Ke7 {[%emt 0:02:08]} 36. Ra5 {[%emt 0:02:05]} f6 {[%emt 0:02:32]} 37. Ke2 {[%emt 0:00:30]} Bb4 {[%emt 0:00:55]} 38. Rb5 {[%emt 0:01:19]} Bd6 {[%emt 0:01:06]} 39. Kd3 {[%emt 0:00:53]} Ra7 {[%emt 0:01:04]} 40. Bf5 {[%emt 0:00:45]} Kd8 {[%emt 0:01:45]} 41. Rb7 {[%emt 0:00:30]} Rxb7 {[%emt 0:01:59]} 42. cxb7 {[%emt 0:00:30]} Kc7 {[%emt 0:00:30]} 43. Bc8 {[%emt 0:00:30]} Kc6 {[%emt 0:01:49]} 44. Kc4 {[%emt 0:00:33]} Bb8 {[%emt 0:01:07]} 45. f3 {[%emt 0:00:30]} h6 {[%emt 0:00:38]} 46. Bf5 {[%emt 0:01:23]} Ba7 {[%emt 0:00:46]} 47. Bg6 {[%emt 0:00:30]} Kd6 {[%emt 0:03:50]} 48. Be8 {[%emt 0:00:39]} Bb8 {[%emt 0:01:56]} 49. Kb5 {[%emt 0:00:41]} Ba7 {[%emt 0:00:52]} 50. Bf7 {[%emt 0:01:05]} Kc7 {[%emt 0:00:30]} 51. Ka6 {[%emt 0:00:34]} Bd4 {[%emt 0:00:30]} 52. Kb5 {[%emt 0:00:30]} Ba7 {[%emt 0:00:30]} 53. Bd5 {[%emt 0:00:30]} Bd4 {[%emt 0:00:30]} 54. a5 {[%emt 0:00:46]} Be3 {[%emt 0:00:30]} 55. b8=Q+ {[%emt 0:00:52]} Kxb8 {[%emt 0:00:30]} 56. Kc6 {[%emt 0:00:30]} Ka7 {[%emt 0:00:32]} 57. Bc4 {[%emt 0:00:30]} Bd2 {[%emt 0:00:30]} 58. a6 {[%emt 0:00:30]} Bf4 {[%emt 0:00:30]} 59. Kd6 {[%emt 0:00:30]} Bxh2 {[%emt 0:00:30]} 60. Ke6 {[%emt 0:00:30]} Bf4 {[%emt 0:00:30]} 61. Kxf6 {[%emt 0:00:30]} Kb6 {[%emt 0:00:30]} 62. Kg6 {[%emt 0:00:30]} Ka7 63. Kxh6 1/2-1/2

[Event "LTU-ch Women 2019"]
[Site "Vilnius"]
[Date "2019.03.19"]
[Round "5.6"]
[White "Staskeviciute, Darija"]
[Black "Simkunaite, Gabija"]
[Result "0-1"]
[ECO "A40"]
[WhiteElo "1572"]
[BlackElo "1820"]
[Annotator "NA"]
[PlyCount "68"]
[EventDate "2019.??.??"]
[EventCountry "LTU"]
[SourceTitle "playchess.com"]
[Source "ChessBase"]
[SourceQuality "1"]
[TimeControl "5400+30"]

1. d4 {[%emt 0:00:00]} e6 {[%emt 0:00:00]} 2. c4 {[%emt 0:00:00]} b6 {[%emt 0:00:20]} 3. Nf3 {[%emt 0:04:53]} Bb7 {[%emt 0:03:27]} 4. e3 {[%emt 0:02:53]} Nf6 {[%emt 0:00:42]} 5. g3 {[%emt 0:00:22]} Be7 {[%emt 0:02:42]} 6. Bg2 {[%emt 0:00:25]} O-O {[%emt 0:00:41]} 7. O-O {[%emt 0:01:16]} c5 {[%emt 0:02:20]} 8. Nc3 {[%emt 0:01:47]} Na6 {[%emt 0:04:17]} 9. Qc2 {[%emt 0:05:59]} Rc8 {[%emt 0:05:17]} 10. Rd1 {[%emt 0:04:17]} cxd4 {[%emt 0:01:00]} 11. Rxd4 {[%emt 0:00:25]} Nb4 {[%emt 0:08:24]} 12. Qe2 {[%emt 0:00:28]} Bxf3 {[%emt 0:04:41]} 13. Bxf3 {[%emt 0:00:33]} Nc6 {[%emt 0:01:06]} 14. Rd1 {[%emt 0:00:40]} Ne5 {[%emt 0:03:29]} 15. b3 {[%emt 0:02:23]} Nxf3+ {[%emt 0:02:25]} 16. Qxf3 {[%emt 0:00:26]} Qc7 {[%emt 0:06:57]} 17. Bb2 {[%emt 0:01:53]} a6 {[%emt 0:00:38]} 18. Rd3 {[%emt 0:02:52]} Rcd8 {[%emt 0:03:10]} 19. Rad1 {[%emt 0:00:23]} h6 {[%emt 0:03:08]} 20. Ne4 {[%emt 0:01:02]} Ne8 {[%emt 0:04:33]} 21. Nc3 {[%emt 0:11:14]} f5 {[%emt 0:03:05]} 22. Ne2 {[%emt 0:00:16]} Kh7 {[%emt 0:01:37]} 23. Nf4 {[%emt 0:01:19]} g5 {[%emt 0:01:35]} 24. Ne2 {[%emt 0:01:26]} Nf6 {[%emt 0:03:54]} 25. Nd4 {[%emt 0:06:17]} Kg6 {[%emt 0:04:06]} 26. Qe2 {[%emt 0:00:17]} e5 {[%emt 0:01:20]} 27. Nf3 e4 {[%emt 0:03:27]} 28. Ne5+ {[%emt 0:01:51]} Kh7 {[%emt 0:00:16]} 29. R3d2 {[%emt 0:04:26]} d6 {[%emt 0:00:09]} 30. Nf3 {[%emt 0:01:10]} exf3 {[%emt 0:00:06]} 31. Qxf3 {[%emt 0:00:07]} Kg6 {[%emt 0:01:49]} 32. Kg2 {[%emt 0:02:06]} g4 {[%emt 0:01:00]} 33. Qf4 {[%emt 0:00:33]} Ne4 {[%emt 0:00:09]} 34. Rd3 {[%emt 0:00:46]} Bg5 {[%emt 0:00:11]} 0-1

[Event "LTU-ch Women 2019"]
[Site "Vilnius"]
[Date "2019.03.20"]
[Round "6.1"]
[White "Simkunaite, Gabija"]
[Black "Kaspute, Vesta"]
[Result "1-0"]
[ECO "B07"]
[WhiteElo "1820"]
[BlackElo "2037"]
[Annotator "NA RC"]
[PlyCount "105"]
[EventDate "2019.??.??"]
[EventCountry "LTU"]
[SourceTitle "playchess.com"]
[Source "ChessBase"]
[SourceQuality "1"]
[TimeControl "5400+30"]

1. e4 {[%emt 0:00:00]} d6 {[%emt 0:00:00]} 2. d4 {[%emt 0:00:05]} Nf6 {[%emt 0:00:06]} 3. Nc3 {[%emt 0:00:07]} c6 {[%emt 0:00:08]} 4. Nf3 {[%emt 0:00:53]} Bg4 {[%emt 0:00:48]} 5. Be2 {[%emt 0:02:23]} e6 {[%emt 0:00:51]} 6. Bf4 {[%emt 0:03:10]} Be7 {[%emt 0:03:03]} 7. h3 {[%emt 0:02:59]} Bh5 {[%emt 0:01:21]} 8. g4 {[%emt 0:03:53]} Bg6 {[%emt 0:00:06]} 9. Bd3 {[%emt 0:01:47]} d5 {[%emt 0:13:48]} 10. e5 {[%emt 0:08:57]} Ne4 {[%emt 0:20:40]} 11. Bxe4 {[%emt 0:10:07]} dxe4 {[%emt 0:01:05]} 12. Ng1 {[%emt 0:01:59]} Qb6 {[%emt 0:07:44]} 13. Nge2 {[%emt 0:08:14]} Na6 {[%emt 0:05:17]} 14. O-O {[%emt 0:07:08]} O-O-O {[%emt 0:09:46]} 15. Rb1 {[%emt 0:07:22]} h5 {[%emt 0:03:53]} 16. g5 {[%emt 0:04:03]} h4 {[%emt 0:03:15]} 17. b4 {[%emt 0:03:47]} Qc7 {[%emt 0:05:09]} 18. a3 {[%emt 0:03:33]} Qd7 {[%emt 0:04:57]} 19. Qc1 {[%emt 0:01:46]} Nc7 {[%emt 0:00:49]} 20. Qe3 {[%emt 0:01:08]} Nd5 {[%emt 0:00:52]} 21. Nxd5 {[%emt 0:00:10]} cxd5 {[%emt 0:01:00]} 22. Rfc1 {[%emt 0:01:46]} Kb8 {[%emt 0:01:44]} 23. c4 {[%emt 0:00:33]} Ka8 {[%emt 0:02:22]} 24. cxd5 {[%emt 0:01:30]} exd5 {[%emt 0:01:27]} 25. Rc3 {[%emt 0:00:47]} Rc8 {[%emt 0:03:03]} 26. Rbc1 {[%emt 0:00:15]} Bh5 {[%emt 0:01:33]} 27. Rxc8+ {[%emt 0:01:08]} Rxc8 {[%emt 0:00:01]} 28. Rxc8+ {[%emt 0:00:29]} Qxc8 {[%emt 0:00:01]} 29. Nc3 {[%emt 0:00:35]} Bf3 {[%emt 0:01:45]} 30. Kh2 {[%emt 0:00:07]} Qc4 {[%emt 0:00:18]} 31. Kg1 {[%emt 0:04:31]} a6 {[%emt 0:03:01]} 32. Qd2 {[%emt 0:04:15]} f6 {[%emt 0:03:41]} 33. exf6 {[%emt 0:02:06]} gxf6 {[%emt 0:00:27]} 34. g6 {[%emt 0:01:17]} Bf8 {[%emt 0:01:25]} 35. Bh2 {[%emt 0:02:09]} Qc6 {[%emt 0:01:29]} 36. Qf4 {[%emt 0:00:46]} Qe8 {[%emt 0:00:23]} 37. Kf1 {[%emt 0:00:48]} Bg7 {[%emt 0:00:37]} 38. Nxd5 {[%emt 0:00:50]} Ka7 {[%emt 0:00:19]} 39. a4 {[%emt 0:01:13]} Qc8 {[%emt 0:00:28]} 40. Qc7 {[%emt 0:01:13]} Qxc7 {[%emt 0:00:30]} 41. Nxc7 {[%emt 0:00:04]} f5 {[%emt 0:00:33]} 42. Ne6 {[%emt 0:00:06]} Bh5 {[%emt 0:00:27]} 43. Nxg7 {[%emt 0:00:08]} Bxg6 {[%emt 0:00:01]} 44. Ke2 {[%emt 0:00:32]} Kb6 {[%emt 0:00:07]} 45. Ke3 {[%emt 0:00:31]} Kc6 {[%emt 0:00:23]} 46. Bb8 {[%emt 0:01:43]} Kd5 {[%emt 0:00:36]} 47. Ba7 {[%emt 0:00:16]} Kc6 {[%emt 0:00:41]} 48. a5 {[%emt 0:00:05]} Kd5 {[%emt 0:00:26]} 49. Kf4 {[%emt 0:00:06]} Kc4 {[%emt 0:00:51]} 50. Nxf5 {[%emt 0:00:17]} Kd3 {[%emt 0:00:45]} 51. Nxh4 {[%emt 0:00:44]} Bf7 {[%emt 0:00:11]} 52. Nf5 {[%emt 0:00:39]} Bd5 {[%emt 0:00:38]} 53. h4 {[%emt 0:00:31]} 1-0

[Event "LTU-ch Women 2019"]
[Site "Vilnius"]
[Date "2019.03.20"]
[Round "6.2"]
[White "Sibajeva, Marija"]
[Black "Perminaite, Guoda"]
[Result "1-0"]
[ECO "D02"]
[WhiteElo "2023"]
[BlackElo "1814"]
[Annotator "NA RC"]
[PlyCount "65"]
[EventDate "2019.??.??"]
[EventCountry "LTU"]
[SourceTitle "playchess.com"]
[Source "ChessBase"]
[SourceQuality "1"]
[TimeControl "5400+30"]

1. d4 {[%emt 0:00:00]} d5 {[%emt 0:00:00]} 2. Bf4 {[%emt 0:00:00]} Nf6 {[%emt 0:00:25]} 3. Nf3 {[%emt 0:00:00]} e6 {[%emt 0:00:13]} 4. e3 {[%emt 0:00:00]} c5 {[%emt 0:01:32]} 5. Nbd2 {[%emt 0:00:32]} Bd6 {[%emt 0:01:44]} 6. c3 {[%emt 0:03:31]} O-O {[%emt 0:00:22]} 7. Bd3 {[%emt 0:01:41]} Nc6 {[%emt 0:10:12]} 8. Bg3 {[%emt 0:01:01]} a6 {[%emt 0:20:49]} 9. Ne5 {[%emt 0:01:27]} Qc7 {[%emt 0:00:20]} 10. Nxc6 {[%emt 0:07:58]} Qxc6 {[%emt 0:00:25]} 11. a4 {[%emt 0:00:37]} b6 {[%emt 0:05:31]} 12. O-O {[%emt 0:01:00]} Bb7 {[%emt 0:08:57]} 13. f4 {[%emt 0:15:18]} Rfe8 {[%emt 0:07:50]} 14. Bh4 {[%emt 0:11:51]} Ne4 {[%emt 0:02:19]} 15. Rf3 {[%emt 0:04:42]} Be7 {[%emt 0:11:35]} 16. Bxe7 {[%emt 0:00:59]} Rxe7 {[%emt 0:01:04]} 17. Rh3 {[%emt 0:00:31]} h6 {[%emt 0:04:08]} 18. g4 {[%emt 0:07:53]} f6 {[%emt 0:04:08]} 19. Nf3 {[%emt 0:04:59]} Qd7 {[%emt 0:05:55]} 20. Rh4 {[%emt 0:07:31]} Qe8 {[%emt 0:03:20]} 21. Qf1 {[%emt 0:04:57]} Qg6 {[%emt 0:06:14]} 22. Qg2 {[%emt 0:00:50]} Kf8 {[%emt 0:02:57]} 23. g5 {[%emt 0:02:42]} fxg5 {[%emt 0:00:27]} 24. fxg5 {[%emt 0:00:35]} Qh7 {[%emt 0:00:55]} 25. Ne5 {[%emt 0:01:04]} Ke8 {[%emt 0:00:23]} 26. Rf1 {[%emt 0:00:36]} cxd4 {[%emt 0:00:33]} 27. exd4 {[%emt 0:03:03]} h5 {[%emt 0:00:18]} 28. Qf3 {[%emt 0:00:42]} Qg8 {[%emt 0:00:12]} 29. Rf4 {[%emt 0:03:11]} Nf6 {[%emt 0:01:11]} 30. gxf6 {[%emt 0:00:17]} gxf6+ {[%emt 0:00:24]} 31. Kh1 {[%emt 0:00:04]} f5 {[%emt 0:00:32]} 32. Rg1 {[%emt 0:00:33]} Qh7 {[%emt 0:00:30]} 33. Qxh5+ {[%emt 0:00:21]} 1-0

[Event "LTU-ch Women 2019"]
[Site "Vilnius"]
[Date "2019.03.20"]
[Round "6.3"]
[White "Maciulaityte, Barbora"]
[Black "Ditmonaite, Viktorija"]
[Result "0-1"]
[ECO "B41"]
[WhiteElo "1765"]
[BlackElo "1871"]
[Annotator "NA RC"]
[PlyCount "74"]
[EventDate "2019.??.??"]
[EventCountry "LTU"]
[SourceTitle "playchess.com"]
[Source "ChessBase"]
[SourceQuality "1"]
[TimeControl "5400+30"]

1. e4 {[%emt 0:00:00]} c5 {[%emt 0:00:00]} 2. Nf3 {[%emt 0:00:00]} e6 {[%emt 0:00:01]} 3. d4 {[%emt 0:00:08]} cxd4 {[%emt 0:00:07]} 4. Nxd4 {[%emt 0:00:06]} a6 {[%emt 0:00:32]} 5. h3 {[%emt 0:01:55]} Qc7 {[%emt 0:00:52]} 6. Nc3 {[%emt 0:06:13]} Nf6 {[%emt 0:01:25]} 7. g4 {[%emt 0:04:46]} Bb4 {[%emt 0:03:31]} 8. Nde2 {[%emt 0:11:37]} Nxe4 {[%emt 0:11:04]} 9. Qd4 {[%emt 0:00:30]} Nxc3 {[%emt 0:05:52]} 10. bxc3 {[%emt 0:01:42]} Bf8 {[%emt 0:00:47]} 11. Bg2 {[%emt 0:10:00]} Nc6 {[%emt 0:01:16]} 12. Qd1 {[%emt 0:05:10]} d5 {[%emt 0:02:31]} 13. O-O {[%emt 0:01:21]} Bd6 {[%emt 0:04:31]} 14. f4 {[%emt 0:02:15]} O-O {[%emt 0:03:19]} 15. Be3 {[%emt 0:05:37]} b5 {[%emt 0:08:56]} 16. f5 {[%emt 0:06:27]} Be5 {[%emt 0:10:42]} 17. Qe1 {[%emt 0:13:58]} h6 {[%emt 0:04:18]} 18. Qh4 {[%emt 0:07:36]} Qe7 {[%emt 0:09:30]} 19. Qf2 {[%emt 0:01:30]} f6 {[%emt 0:12:23]} 20. Rad1 {[%emt 0:01:43]} Rd8 {[%emt 0:00:40]} 21. Bc5 {[%emt 0:00:36]} Qf7 {[%emt 0:03:11]} 22. Rd2 {[%emt 0:01:38]} Na5 {[%emt 0:03:39]} 23. Nd4 {[%emt 0:04:48]} Bxd4 {[%emt 0:04:27]} 24. Rxd4 {[%emt 0:00:51]} Nc4 {[%emt 0:01:41]} 25. a4 {[%emt 0:02:03]} Bb7 {[%emt 0:02:20]} 26. fxe6 {[%emt 0:02:46]} Qxe6 {[%emt 0:00:08]} 27. Rb1 {[%emt 0:00:54]} Bc6 {[%emt 0:01:36]} 28. Re1 {[%emt 0:00:17]} Ne5 {[%emt 0:00:08]} 29. axb5 {[%emt 0:03:48]} axb5 {[%emt 0:00:06]} 30. Rb4 {[%emt 0:00:23]} Ra4 {[%emt 0:00:28]} 31. Bd4 {[%emt 0:01:02]} Rda8 {[%emt 0:01:18]} 32. Rxa4 {[%emt 0:03:33]} bxa4 {[%emt 0:00:22]} 33. Qf4 {[%emt 0:00:41]} a3 {[%emt 0:00:51]} 34. c4 {[%emt 0:00:33]} a2 {[%emt 0:01:09]} 35. cxd5 {[%emt 0:00:30]} Bxd5 {[%emt 0:00:11]} 36. Bxd5 {[%emt 0:00:02]} Qxd5 {[%emt 0:00:08]} 37. Ba1 Nf3+ 0-1

[Event "LTU-ch Women 2019"]
[Site "Vilnius"]
[Date "2019.03.20"]
[Round "6.5"]
[White "Butvilaite, Berta Reja"]
[Black "Malisauskiene, Marina"]
[Result "1/2-1/2"]
[ECO "C18"]
[WhiteElo "1809"]
[BlackElo "1869"]
[Annotator "NA RC"]
[PlyCount "80"]
[EventDate "2019.??.??"]
[EventCountry "LTU"]
[SourceTitle "playchess.com"]
[Source "ChessBase"]
[SourceQuality "1"]
[TimeControl "5400+30"]

1. e4 {[%emt 0:00:00]} e6 {[%emt 0:00:00]} 2. d4 {[%emt 0:00:30]} d5 {[%emt 0:00:30]} 3. Nc3 {[%emt 0:00:30]} Bb4 {[%emt 0:00:30]} 4. e5 {[%emt 0:00:30]} c5 {[%emt 0:00:30]} 5. a3 {[%emt 0:00:30]} Bxc3+ {[%emt 0:00:30]} 6. bxc3 {[%emt 0:00:30]} Ne7 {[%emt 0:01:06]} 7. Qg4 {[%emt 0:01:25]} g6 {[%emt 0:06:22]} 8. Bg5 {[%emt 0:03:49]} Qa5 {[%emt 0:09:24]} 9. Qf3 {[%emt 0:05:33]} Nbc6 {[%emt 0:00:42]} 10. Ne2 {[%emt 0:02:02]} Nf5 {[%emt 0:02:18]} 11. Bd2 {[%emt 0:03:23]} h5 {[%emt 0:03:26]} 12. g3 {[%emt 0:02:18]} Qa4 {[%emt 0:00:51]} 13. Ra2 {[%emt 0:07:01]} cxd4 {[%emt 0:02:07]} 14. cxd4 {[%emt 0:00:32]} Ncxd4 {[%emt 0:05:05]} 15. Nxd4 {[%emt 0:01:15]} Qxd4 {[%emt 0:02:25]} 16. Bc3 {[%emt 0:00:53]} Qc5 {[%emt 0:07:33]} 17. Bb4 {[%emt 0:02:43]} Qc7 {[%emt 0:00:38]} 18. Bb5+ {[%emt 0:11:07]} Bd7 {[%emt 0:00:30]} 19. Bxd7+ {[%emt 0:00:33]} Kxd7 {[%emt 0:03:07]} 20. O-O {[%emt 0:01:05]} Rhc8 {[%emt 0:01:36]} 21. Re1 {[%emt 0:03:27]} a5 {[%emt 0:02:30]} 22. Bd2 {[%emt 0:01:29]} Qc4 {[%emt 0:02:46]} 23. Rb2 {[%emt 0:03:04]} Rc7 {[%emt 0:09:42]} 24. Reb1 {[%emt 0:02:59]} Kc8 {[%emt 0:02:01]} 25. h3 {[%emt 0:08:13]} Qa4 {[%emt 0:12:53]} 26. g4 {[%emt 0:04:11]} hxg4 {[%emt 0:00:30]} 27. hxg4 {[%emt 0:00:30]} Nd4 {[%emt 0:00:42]} 28. Qh3 {[%emt 0:00:59]} Qe8 {[%emt 0:03:05]} 29. c3 {[%emt 0:08:10]} Nc6 {[%emt 0:00:30]} 30. Qg3 {[%emt 0:09:43]} a4 {[%emt 0:03:50]} 31. Be3 {[%emt 0:01:01]} Qf8 {[%emt 0:01:04]} 32. Bb6 {[%emt 0:01:38]} Rd7 {[%emt 0:00:30]} 33. Qe3 {[%emt 0:00:53]} Qh8 {[%emt 0:01:16]} 34. Bd4 {[%emt 0:00:42]} Na5 {[%emt 0:01:13]} 35. Bb6 {[%emt 0:02:27]} Nb3 {[%emt 0:00:34]} 36. c4 {[%emt 0:01:18]} Qh4 {[%emt 0:02:59]} 37. cxd5 {[%emt 0:01:39]} Qxg4+ {[%emt 0:01:49]} 38. Kh2 {[%emt 0:01:06]} Qh5+ {[%emt 0:04:22]} 39. Kg2 {[%emt 0:01:04]} Qg4+ {[%emt 0:05:18]} 40. Kh2 {[%emt 0:00:30]} Qh5+ {[%emt 0:00:46]} 1/2-1/2

[Event "LTU-ch Women 2019"]
[Site "Vilnius"]
[Date "2019.03.20"]
[Round "6.6"]
[White "Ravlusevic, Evelina"]
[Black "Staskeviciute, Darija"]
[Result "1-0"]
[ECO "D43"]
[WhiteElo "1704"]
[BlackElo "1572"]
[Annotator "NA RC"]
[PlyCount "89"]
[EventDate "2019.??.??"]
[EventCountry "LTU"]
[SourceTitle "playchess.com"]
[Source "ChessBase"]
[SourceQuality "1"]
[TimeControl "5400+30"]

1. d4 {[%emt 0:03:36]} d5 {[%emt 0:00:00]} 2. c4 {[%emt 0:00:05]} c6 {[%emt 0:00:00]} 3. Nf3 {[%emt 0:00:05]} Nf6 {[%emt 0:00:24]} 4. Nc3 {[%emt 0:00:06]} e6 {[%emt 0:00:32]} 5. Bf4 {[%emt 0:00:28]} Bd6 {[%emt 0:05:47]} 6. Bg3 {[%emt 0:00:09]} Qc7 {[%emt 0:05:23]} 7. e3 {[%emt 0:00:17]} Nbd7 {[%emt 0:00:21]} 8. Rc1 {[%emt 0:00:37]} a6 {[%emt 0:07:43]} 9. Bd3 {[%emt 0:00:35]} Bxg3 {[%emt 0:01:11]} 10. hxg3 {[%emt 0:00:02]} dxc4 {[%emt 0:00:14]} 11. Bxc4 {[%emt 0:00:14]} b5 {[%emt 0:00:57]} 12. Bd3 {[%emt 0:00:23]} c5 {[%emt 0:00:47]} 13. O-O {[%emt 0:04:58]} c4 {[%emt 0:01:21]} 14. Be2 {[%emt 0:01:00]} Qb6 {[%emt 0:03:11]} 15. b3 {[%emt 0:00:47]} cxb3 {[%emt 0:00:39]} 16. Qxb3 {[%emt 0:00:08]} O-O {[%emt 0:00:16]} 17. Rb1 {[%emt 0:00:58]} Rb8 {[%emt 0:01:48]} 18. e4 {[%emt 0:04:33]} Bb7 {[%emt 0:01:22]} 19. Bd3 {[%emt 0:00:46]} Ba8 {[%emt 0:00:41]} 20. Qc2 {[%emt 0:00:48]} h6 {[%emt 0:00:35]} 21. a4 {[%emt 0:00:18]} b4 {[%emt 0:00:25]} 22. Qe2 {[%emt 0:02:56]} a5 {[%emt 0:00:21]} 23. Nb5 {[%emt 0:00:17]} Rbc8 {[%emt 0:03:55]} 24. Nd2 {[%emt 0:00:38]} Qd8 {[%emt 0:05:42]} 25. Rbc1 {[%emt 0:03:02]} Nb6 {[%emt 0:00:29]} 26. Ra1 {[%emt 0:03:39]} Qd7 {[%emt 0:05:55]} 27. Nb3 {[%emt 0:01:10]} Rfd8 {[%emt 0:01:36]} 28. Nxa5 {[%emt 0:00:41]} Bc6 {[%emt 0:02:45]} 29. Nxc6 {[%emt 0:03:41]} Rxc6 {[%emt 0:00:48]} 30. a5 {[%emt 0:01:32]} Nc8 {[%emt 0:00:44]} 31. Qb2 {[%emt 0:00:44]} Qe7 {[%emt 0:01:06]} 32. Rfb1 {[%emt 0:00:38]} Na7 {[%emt 0:17:02]} 33. Qxb4 {[%emt 0:04:01]} Qxb4 {[%emt 0:00:32]} 34. Rxb4 {[%emt 0:00:02]} Nxb5 {[%emt 0:00:10]} 35. Bxb5 {[%emt 0:00:21]} Rc2 {[%emt 0:00:20]} 36. f3 {[%emt 0:01:29]} Nh5 {[%emt 0:00:54]} 37. Kh2 {[%emt 0:01:31]} Ra8 {[%emt 0:02:31]} 38. a6 {[%emt 0:01:00]} Ra7 {[%emt 0:00:06]} 39. Bd3 {[%emt 0:00:59]} Rcc7 {[%emt 0:00:08]} 40. e5 {[%emt 0:00:20]} f5 {[%emt 0:00:33]} 41. Rab1 {[%emt 0:00:38]} g5 {[%emt 0:01:02]} 42. Rb7 {[%emt 0:00:36]} Ng7 {[%emt 0:00:28]} 43. Rxc7 {[%emt 0:00:31]} Rxc7 {[%emt 0:00:08]} 44. Rb7 {[%emt 0:00:34]} Rc8 {[%emt 0:00:11]} 45. a7 {[%emt 0:00:23]} 1-0